bitfinex/quotes_ETHUSD_20260213
["timestamp","ask_amount","ask_price","bid_price","bid_amount"]
[1771008634516,0.002,2062.4,2062.0,0.001]
[1771008634713,0.45465803,2062.4,2062.0,0.001]
[1771008636239,1.21223876,2062.3,2062.0,0.001]
[1771008636434,0.45265803,2062.2,2062.0,0.001]
[1771008638647,1.6649758,2062.2,2062.0,0.001]
[1771008639012,0.45265803,2062.2,2062.0,0.001]
[1771008640540,4.85085188,2062.4,2062.0,0.001]
[1771008640541,0.48027793,2062.4,2062.0,0.001]
[1771008640842,0.002,2062.4,2062.0,0.001]
[1771008641245,0.002,2062.4,2062.2,0.001]
[1771008641546,0.002,2062.2,2062.0,0.001]
[1771008642411,0.002,2062.2,2062.0,1.21341513]
[1771008642611,0.002,2062.4,2062.1,0.46633409]
[1771008642842,0.002,2062.4,2062.2,1.257]
[1771008643208,0.002,2062.6,2062.2,1.257]
[1771008644212,1.69197096,2063.3,2062.3,0.46633409]
[1771008644413,1.69197096,2063.3,2062.4,1.21217998]
[1771008644714,0.002,2063.3,2062.5,0.46633409]
[1771008644919,0.002,2063.3,2062.6,1.258]
[1771008645235,1.2136629,2063.3,2062.6,1.258]
[1771008645431,0.47827793,2063.2,2062.6,1.258]
[1771008645618,1.2136542,2063.3,2062.6,1.258]
[1771008645818,0.002,2063.3,2062.6,1.258]
[1771008646148,0.002,2063.3,2062.7,0.46633409]
[1771008646456,0.002,2063.3,2062.8,1.21194492]
[1771008646845,0.002,2063.3,2062.6,1.258]
[1771008647043,0.48027793,2063.3,2062.6,2.47005335]
[1771008649217,1.21170996,2063.2,2062.6,2.47005335]
[1771008649634,1.68998789,2063.2,2062.6,2.47006166]
[1771008651059,1.68998789,2063.2,2062.6,2.47006037]
[1771008653366,1.68998789,2063.2,2062.6,1.258]
[1771008653668,0.47827793,2063.1,2062.6,1.258]
[1771008654440,1.21182743,2063.0,2062.6,1.258]
[1771008655127,0.47827793,2062.9,2062.8,0.001]
[1771008655330,0.47827793,2062.9,2062.3,2.47223195]
[1771008655858,1.69008933,2063.1,2062.3,2.93856604]
[1771008656160,0.002,2063.3,2062.4,0.46633409]
[1771008656463,0.002,2063.0,2062.6,0.46633409]
[1771008656658,0.002,2063.3,2062.6,0.46633409]
[1771008657253,0.002,2063.2,2062.6,0.46633409]
[1771008658332,0.002,2063.2,2062.8,0.46633409]
[1771008658654,0.002,2063.2,2062.8,1.67823682]
[1771008658859,0.002,2063.2,2062.8,1.21190273]
[1771008659066,0.002,2063.2,2062.8,1.67823682]
[1771008659274,0.002,2063.2,2062.9,0.46633409]
[1771008659948,0.002,2063.2,2062.8,1.21190273]
[1771008660165,0.48027793,2063.2,2062.7,2.47197211]
[1771008660352,0.48027793,2063.2,2062.7,1.26]
[1771008660532,0.48027793,2063.2,2062.7,2.47199306]
[1771008660533,1.69198937,2063.2,2062.7,2.47199306]
[1771008660860,1.69198937,2063.2,2062.7,1.26]
[1771008661064,1.69198937,2063.2,2062.7,2.47200239]
[1771008661263,0.475895,2063.1,2062.7,1.26]
[1771008661451,0.475895,2063.1,2062.5,0.001]
[1771008662441,0.475895,2062.9,2062.5,0.001]
[1771008664059,0.475895,2062.8,2062.5,0.001]
[1771008664663,1.68787466,2062.8,2062.5,0.001]
[1771008666247,1.067,2063.0,2062.5,0.001]
[1771008666449,1.68766369,2063.1,2062.5,0.001]
[1771008667131,0.002,2063.2,2062.5,0.001]
[1771008667341,1.21371853,2063.2,2062.5,0.49589964]
[1771008668462,0.475895,2063.1,2062.5,0.001]
[1771008668669,0.002,2063.2,2062.5,0.001]
[1771008668848,0.002,2063.2,2062.7,0.49489964]
[1771008669232,1e-08,2063.4,2062.7,0.49489964]
[1771008669967,1.21160382,2063.4,2062.7,0.49489964]
[1771008670151,1.21160382,2063.4,2062.6,1.258]
[1771008670346,1.6874889,2063.4,2062.6,1.75289964]
[1771008670545,1.2115939,2063.4,2062.6,1.75289964]
[1771008670759,1e-08,2063.4,2062.7,1.21200368]
[1771008672578,1e-08,2063.4,2062.8,0.001]
[1771008672776,0.002,2063.0,2062.8,0.001]
[1771008677988,0.477895,2063.0,2062.8,0.001]
[1771008678454,0.477895,2063.0,2062.5,0.001]
[1771008679052,0.475895,2062.8,2062.5,0.001]
[1771008679283,0.475895,2062.8,2062.2,2.47328091]
[1771008679483,1.21188617,2062.9,2062.2,2.47328091]
[1771008679681,1.68972691,2063.0,2062.2,2.47328091]
[1771008679885,0.002,2063.0,2062.3,0.49489964]
[1771008680302,0.002,2063.2,2062.3,0.49489964]
[1771008680459,0.002,2063.2,2062.4,0.49489964]
[1771008681083,0.002,2063.2,2062.6,0.49489964]
[1771008681285,0.002,2063.2,2062.7,1.75589964]
[1771008681581,0.002,2063.2,2062.8,0.49489964]
[1771008681757,1e-08,2063.4,2062.8,0.49489964]
[1771008683303,1e-08,2063.4,2062.9,1.21188617]
[1771008684892,1e-08,2063.4,2062.9,1.70678581]
[1771008685188,1e-08,2063.4,2062.9,1.21188617]
[1771008685773,0.002,2063.2,2062.9,1.21188617]
[1771008686967,0.002,2063.2,2062.9,1.70678581]
[1771008687168,1e-08,2063.4,2063.0,0.49489964]
[1771008687367,1e-08,2063.4,2063.1,1.266]
[1771008689496,0.47589501,2063.4,2062.8,2.47889995]
[1771008690304,0.47589501,2063.4,2062.8,1.267]
[1771008691511,0.47589501,2063.4,2062.9,1.21188617]
[1771008691899,1e-08,2063.4,2062.9,1.21188617]
[1771008692082,1e-08,2063.4,2062.9,1.704766]
[1771008693170,0.45783439,2063.9,2063.0,0.49287983]
[1771008693372,1.66914564,2063.9,2063.1,1.21176869]
[1771008693572,1.66914564,2063.9,2063.2,1.269]
[1771008694076,1.21330296,2063.9,2063.2,1.269]
[1771008694408,0.002,2063.9,2063.2,1.269]
[1771008694913,0.45583439,2063.8,2063.2,1.269]
[1771008695270,0.45583439,2063.8,2063.0,1.21178134]
[1771008695701,1.21331296,2063.9,2063.1,0.49287983]
[1771008695900,1.66914735,2063.9,2063.0,1.21178134]
[1771008696196,1.66914735,2063.9,2063.0,1.70466117]
[1771008696903,0.002,2063.9,2063.1,0.49287983]
[1771008697588,0.002,2063.9,2063.3,0.46529417]
[1771008697589,0.002,2063.6,2063.3,0.46529417]
[1771008697786,0.002,2063.6,2063.3,1.73429417]
[1771008698804,0.002,2063.8,2063.4,0.46529417]
[1771008699307,0.002,2063.9,2063.4,0.46529417]
[1771008699787,0.002,2063.9,2063.5,1.2115338]
[1771008702195,0.002,2063.9,2063.4,4.8461352]
[1771008702814,0.002,2063.9,2063.3,1.269]
[1771008703010,0.48731781,2063.9,2063.3,2.48061643]
[1771008704427,0.002,2063.9,2063.3,2.48061643]
[1771008704726,1.69862403,2063.9,2063.3,2.48061643]
[1771008704891,0.48531781,2063.8,2063.3,2.48064838]
[1771008705216,0.48531781,2063.8,2063.3,1.269]
[1771008705414,0.48531781,2063.8,2063.0,2.4867792]
[1771008705620,0.48531781,2063.8,2063.0,1.275]
[1771008705825,0.48531781,2063.8,2062.7,0.874]
[1771008705984,0.48531781,2063.8,2062.7,3.09297902]
[1771008706930,0.48531781,2063.6,2062.8,0.46529417]
[1771008707235,0.48731781,2063.9,2062.8,0.46529417]
[1771008707394,1.69862035,2063.9,2062.8,0.46529417]
[1771008708187,1.69862027,2063.9,2062.8,0.46529417]
[1771008708521,0.48731781,2063.9,2062.8,0.46529417]
[1771008709032,1.6986171,2063.9,2063.0,0.46529417]
[1771008709187,0.002,2063.9,2063.1,1.74129417]
[1771008709510,1.69861836,2063.9,2063.1,1.74129417]
[1771008709707,0.48731781,2063.9,2063.1,1.74129417]
[1771008709914,0.002,2063.6,2063.1,1.74129417]
[1771008710743,0.002,2063.6,2063.2,0.46529417]
[1771008711027,0.002,2063.6,2063.4,0.46529417]
[1771008711228,0.002,2063.9,2063.5,1.276]
[1771008712903,0.002,2063.9,2063.5,2.48752954]
[1771008714133,0.002,2064.1,2063.6,0.46529417]
[1771008714321,0.48731781,2064.1,2063.5,2.48752954]
[1771008714506,0.002,2064.1,2063.5,2.48752954]
[1771008715805,0.48731781,2064.1,2063.2,1.21170996]
[1771008716207,0.48731781,2064.1,2063.2,1.67700413]
[1771008716426,0.002,2064.1,2063.3,0.46529417]
[1771008717022,0.002,2064.1,2063.4,1.21159251]
[1771008717327,0.002,2064.1,2063.3,2.49062075]
[1771008717328,0.48531781,2064.0,2063.3,2.49062075]
[1771008717728,0.002,2064.1,2063.3,2.95591492]
[1771008718103,0.002,2064.1,2063.4,0.46529417]
[1771008719231,0.002,2064.1,2063.5,1.2115338]
[1771008719537,0.48731781,2064.1,2063.5,1.2115338]
[1771008720434,0.002,2064.1,2063.5,1.2115338]
[1771008720934,0.002,2064.1,2063.6,0.48178194]
[1771008721152,0.002,2064.1,2063.7,1.279]
[1771008721320,0.002,2064.1,2063.8,1.21135768]
[1771008721811,0.002,2064.1,2063.7,2.49037154]
[1771008722017,0.002,2064.1,2063.7,1.279]
[1771008722215,0.002,2064.1,2063.7,2.49041274]
[1771008722546,0.4645789,2063.9,2062.9,1.21287164]
[1771008722915,0.4645789,2063.9,2063.0,1.281]
[1771008723231,0.002,2064.1,2063.3,0.001]
[1771008723232,1.21321354,2064.1,2063.3,0.001]
[1771008723432,0.002,2063.9,2063.3,0.001]
[1771008723833,0.4645789,2063.8,2063.3,0.001]
[1771008724044,0.002,2063.9,2063.3,0.001]
[1771008724811,0.4665789,2063.9,2063.3,0.001]
[1771008725449,0.4645789,2063.7,2063.3,0.001]
[1771008726144,0.002,2063.9,2063.3,0.001]
[1771008730129,0.4665789,2063.9,2063.3,0.001]
[1771008731360,0.002,2063.9,2063.3,0.001]
[1771008731755,0.002,2063.9,2063.3,1.21265123]
[1771008734275,0.4665789,2063.9,2063.3,1.21265123]
[1771008735070,0.002,2063.9,2063.3,1.21265123]
[1771008735472,0.4665789,2063.9,2063.4,1.28]
[1771008736160,1.67593658,2063.8,2063.4,1.28]
[1771008736748,1.67593658,2063.8,2063.5,0.001]
[1771008737068,0.4665789,2063.7,2063.5,0.001]
[1771008737368,0.4665789,2063.7,2063.0,2.49277423]
[1771008737972,0.4665789,2063.7,2063.0,1.281]
[1771008738175,0.4665789,2063.7,2063.0,2.49281877]
[1771008738475,0.4645789,2063.5,2063.0,1.281]
[1771008738658,0.4645789,2063.5,2063.0,2.49282629]
[1771008738976,0.002,2063.7,2063.0,2.49282629]
[1771008739377,1.21342071,2063.7,2063.0,2.49282629]
[1771008739559,0.002,2063.7,2063.0,2.49282629]
[1771008740475,0.002,2063.7,2063.0,2.97460823]
[1771008740773,0.002,2063.7,2063.1,0.48178194]
[1771008741753,0.002,2063.7,2063.0,2.49282629]
[1771008742861,0.4665789,2063.7,2063.0,2.49282629]
[1771008745393,0.4645789,2063.6,2063.0,0.001]
[1771008747907,0.4645789,2063.4,2063.0,0.001]
[1771008749494,0.4645789,2063.4,2063.2,0.001]
[1771008749705,0.4645789,2063.4,2063.0,0.001]
[1771008749870,0.4645789,2063.2,2063.0,0.001]
[1771008750497,1.67621373,2063.4,2063.0,0.001]
[1771008751070,1.21355683,2063.5,2063.0,0.001]
[1771008751498,1.67732496,2063.5,2063.0,0.001]
[1771008752100,0.46376813,2063.4,2063.0,0.001]
[1771008753113,0.002,2063.5,2063.0,0.001]
[1771008754088,0.002,2063.5,2063.0,0.47687725]
[1771008754404,0.002,2063.5,2063.1,1.278]
[1771008755094,0.46576813,2063.5,2063.1,1.278]
[1771008755583,0.002,2063.5,2063.1,1.278]
[1771008755972,0.002,2063.5,2063.0,0.001]
[1771008757685,0.48274127,2063.5,2063.0,0.001]
[1771008758189,0.48074127,2063.3,2063.0,0.001]
[1771008759312,0.48074127,2063.3,2062.7,0.001]
[1771008759936,0.48074127,2063.1,2062.7,0.001]
[1771008760486,1.6925687,2063.0,2062.7,0.001]
[1771008760721,0.48074127,2062.9,2062.5,0.001]
[1771008762405,1.21194492,2062.8,2062.5,0.001]
[1771008762587,0.48074127,2062.7,2062.5,0.001]
[1771008762791,0.48074127,2062.7,2062.2,0.874]
[1771008763000,0.48074127,2062.7,2062.2,0.001]
[1771008763401,0.48074127,2062.7,2061.8,0.499]
[1771008763688,0.48074127,2062.7,2061.8,0.001]
[1771008763899,0.48074127,2062.5,2061.8,0.001]
[1771008764123,0.48074127,2062.3,2061.8,0.001]
[1771008764310,0.48074127,2062.3,2061.5,0.874]
[1771008764311,0.48074127,2062.1,2061.5,0.001]
[1771008764533,0.48074127,2062.1,2061.3,0.001]
[1771008764534,0.48074127,2061.7,2061.3,0.001]
[1771008764716,0.48074127,2061.5,2060.7,2.08617576]
[1771008765611,0.48074127,2061.7,2060.7,1.21317576]
[1771008765797,0.48074127,2061.6,2060.7,1.21317576]
[1771008766827,1.21270919,2061.5,2060.5,1.21329774]
[1771008767323,1.69345046,2061.5,2060.5,1.21329774]
[1771008767522,0.48074127,2061.4,2060.5,1.21329774]
[1771008768112,0.48074127,2061.4,2060.4,5.35142075]
[1771008768113,0.48074127,2061.4,2060.4,1.71133032]
[1771008768594,0.48074127,2061.4,2060.4,0.498]
[1771008768923,0.48074127,2061.2,2060.4,0.498]
[1771008769127,0.48074127,2061.1,2060.4,0.498]
[1771008770025,0.48074127,2061.1,2060.4,1.21335586]
[1771008770226,0.48074127,2061.1,2060.3,1.21338359]
[1771008770591,0.48074127,2061.1,2060.1,2.08652634]
[1771008770797,1.69374466,2061.0,2060.1,2.08652634]
[1771008771448,0.48074127,2060.9,2060.1,0.873]
[1771008771738,0.48074127,2060.9,2060.1,2.08652647]
[1771008772153,1.21300339,2061.0,2060.1,2.55002126]
[1771008772438,2.27100339,2061.0,2060.1,2.55002126]
[1771008772745,2.75174466,2061.0,2060.1,2.55002126]
[1771008773107,0.48074127,2060.9,2060.1,2.08652647]
[1771008774306,1.21296783,2061.1,2060.1,2.08652647]
[1771008774534,1.21296783,2061.1,2060.2,0.46349479]
[1771008774841,1.21296783,2061.1,2060.1,2.08652647]
[1771008774842,0.48074127,2061.0,2060.1,2.08652647]
[1771008775136,1.69380352,2060.9,2060.5,0.001]
[1771008775740,1.21302789,2061.0,2060.5,0.001]
[1771008776737,0.48074127,2060.9,2060.5,0.001]
[1771008777750,0.48074127,2060.7,2060.3,0.001]
[1771008777918,1.06,2060.7,2060.3,0.001]
[1771008778260,0.48074127,2060.6,2059.5,1.21388686]
[1771008778545,0.48074127,2060.6,2059.5,1.67738165]
[1771008778713,0.48074127,2060.6,2059.6,0.46349479]
[1771008779818,1.69402466,2060.6,2059.5,0.46349479]
[1771008780025,0.48074127,2060.5,2059.5,0.46349479]
[1771008780226,0.48074127,2060.5,2059.4,0.001]
[1771008780227,0.48074127,2060.5,2059.4,0.46449479]
[1771008780422,1.69390367,2060.8,2059.4,0.46449479]
[1771008780651,1.21305639,2061.0,2059.4,0.46449479]
[1771008780945,5.33465338,2061.1,2059.4,0.46449479]
[1771008780946,1.21495431,2061.1,2059.7,0.49045467]
[1771008781132,0.48687766,2061.0,2059.8,0.498]
[1771008781844,1.21306225,2060.9,2059.8,1.71170652]
[1771008782148,0.48687766,2060.7,2059.5,1.21385898]
[1771008782313,1.54687766,2060.6,2059.5,1.70431365]
[1771008783034,1.008,2060.6,2059.6,0.49045467]
[1771008783342,1.49487766,2060.6,2059.6,0.49045467]
[1771008783753,1.69993991,2060.9,2059.6,0.49045467]
[1771008783927,2.75993991,2060.9,2059.6,0.49045467]
[1771008784248,1.21300339,2061.0,2059.8,0.49045467]
[1771008784424,1.21300339,2061.0,2060.0,0.49045467]
[1771008784821,2.27498424,2061.1,2060.0,0.49045467]
[1771008785139,0.002,2061.1,2060.0,0.49045467]
[1771008786138,0.002,2061.1,2060.2,0.49045467]
[1771008787542,0.002,2061.1,2060.4,0.49045467]
[1771008787843,0.002,2061.1,2060.5,1.27]
[1771008788035,0.002,2061.1,2060.5,1.76045467]
[1771008788235,0.002,2061.1,2060.6,1.21323886]
[1771008788541,0.002,2061.1,2060.7,0.49045467]
[1771008788746,0.002,2061.1,2060.6,1.21323886]
[1771008788949,0.002,2061.1,2060.6,1.70369353]
[1771008789144,0.002,2061.1,2060.7,0.49045467]
[1771008789749,0.002,2061.1,2060.6,1.21323886]
[1771008791247,1.17699816,2061.7,2060.7,0.49045467]
[1771008792249,1.2125651,2061.8,2060.7,0.49045467]
[1771008792461,1.21252514,2061.9,2060.8,1.70357578]
[1771008792623,1.69931576,2062.0,2060.9,0.49045467]
[1771008792819,1.69930474,2062.0,2061.0,1.272]
[1771008793021,1.21239941,2062.1,2061.1,0.49045467]
[1771008793238,1.21434357,2062.2,2061.1,0.49045467]
[1771008794437,1.70122123,2062.2,2061.2,1.21288569]
[1771008794839,0.48687766,2062.1,2061.2,1.21288569]
[1771008795036,0.48687766,2062.1,2060.5,0.49045467]
[1771008795262,0.48687766,2061.9,2060.6,1.21323886]
[1771008795463,0.48687766,2061.7,2060.6,1.21323886]
[1771008796264,0.48687766,2061.7,2060.6,1.70369353]
[1771008796462,1.34187766,2061.7,2060.6,1.70369353]
[1771008796669,1.21265036,2061.6,2060.6,1.70369353]
[1771008797234,0.874,2061.9,2060.7,0.49045467]
[1771008797235,1.21257945,2061.8,2060.7,0.49045467]
[1771008797465,0.48687766,2062.0,2060.7,0.49045467]
[1771008797466,1.69929579,2062.0,2060.7,0.49045467]
[1771008797668,0.48687766,2061.9,2060.7,0.49045467]
[1771008797967,0.48687766,2061.9,2060.6,1.21323886]
[1771008798961,0.48687766,2061.7,2060.5,4.85304736]
[1771008799973,1.21253273,2061.8,2060.5,4.85304736]
[1771008799974,0.002,2061.4,2060.6,0.04852955]
[1771008800171,0.002,2061.4,2060.5,5.39203158]
[1771008800836,0.002,2061.4,2060.6,0.49045467]
[1771008801887,0.002,2061.4,2060.7,0.49045467]
[1771008802847,0.002,2061.4,2060.8,1.21312111]
[1771008803053,0.002,2061.4,2060.5,1.21329774]
[1771008803252,0.002,2061.4,2060.5,1.70375241]
[1771008805575,0.002,2061.6,2060.6,0.49045467]
[1771008805951,1.70122336,2062.2,2060.9,0.49045467]
[1771008806152,1.70122336,2062.2,2061.1,0.49045467]
[1771008806960,1.2143457,2062.2,2061.0,2.149]
[1771008807152,0.48687766,2062.1,2061.0,2.149]
[1771008807357,1.69924338,2062.1,2061.1,1.70339921]
[1771008809482,0.48687766,2062.1,2061.1,1.70339921]
[1771008810181,0.002,2062.2,2061.2,0.49045467]
[1771008810763,0.002,2062.2,2061.5,0.47398432]
[1771008810968,0.002,2062.5,2061.7,0.47398432]
[1771008811167,0.002,2062.5,2061.9,0.47398432]
[1771008811484,0.002,2062.5,2062.0,1.21241513]
[1771008812279,0.002,2062.5,2062.1,1.275]
[1771008812973,0.48686901,2063.3,2062.2,0.47398432]
[1771008813175,1.21368485,2063.3,2062.2,0.47398432]
[1771008813375,0.002,2063.3,2062.2,0.47398432]
[1771008813687,0.48686901,2063.3,2062.3,1.21223876]
[1771008813989,0.002,2063.0,2062.3,1.21223876]
[1771008819084,0.48686901,2063.0,2062.1,1.275]
[1771008819288,0.48686901,2063.0,2062.0,0.498]
[1771008820170,1.21188617,2062.9,2062.0,1.71036922]
[1771008820371,0.002,2063.0,2062.0,2.18435354]
[1771008820570,0.002,2063.0,2062.1,0.47398432]
[1771008822375,0.002,2063.0,2062.2,1.21229754]
[1771008823071,0.002,2063.0,2062.3,1.34798432]
[1771008823996,0.002,2063.0,2062.4,0.47398432]
[1771008824177,0.002,2063.0,2062.5,1.277]
[1771008824607,0.002,2063.0,2062.6,1.21206244]
[1771008825676,0.002,2063.3,2062.6,10.84883175]
[1771008826096,0.002,2063.3,2062.7,0.47398432]
[1771008826295,0.002,2063.5,2062.7,0.47398432]
[1771008826498,0.002,2063.5,2062.8,1.21194492]
[1771008828590,0.48686901,2063.5,2062.8,1.21194492]
[1771008828915,0.48686901,2063.5,2062.6,1.21203442]
[1771008830010,0.48686901,2063.5,2062.5,2.49007823]
[1771008830314,0.48686901,2063.5,2062.5,2.49011986]
[1771008830611,0.48486901,2063.3,2062.5,2.49011133]
[1771008831307,1.2135583,2063.5,2062.5,2.49011133]
[1771008831698,0.002,2063.5,2062.6,0.47398432]
[1771008833622,0.002,2063.5,2062.7,1.21200368]
[1771008833989,0.002,2063.7,2062.8,0.47398432]
[1771008835821,0.002,2063.9,2063.1,0.47398432]
[1771008836019,0.002,2063.9,2063.0,9.16278499]
[1771008836020,0.002,2063.9,2063.2,2.62498432]
[1771008836220,0.002,2063.9,2063.2,2.151]
[1771008836402,0.48686901,2063.9,2063.2,2.151]
[1771008837932,0.48486901,2063.7,2063.2,2.151]
[1771008838296,0.002,2063.9,2063.2,3.36270226]
[1771008838492,1.21330002,2063.9,2063.2,3.36270226]
[1771008838696,0.002,2063.9,2063.2,3.36270226]
[1771008842526,0.002,2063.5,2063.2,3.36270226]
[1771008842734,0.002,2063.9,2063.2,3.36270226]
[1771008843108,0.002,2063.7,2063.2,3.36270226]
[1771008844042,0.002,2064.1,2063.3,9.64876873]
[1771008844246,0.002,2064.1,2063.4,0.48598374]
[1771008844444,0.002,2064.1,2063.5,1.2115338]
[1771008844599,0.002,2064.1,2063.6,1.282]
[1771008844796,0.49925055,2064.1,2063.6,1.282]
[1771008847230,1.71048984,2064.1,2063.6,1.282]
[1771008847535,0.49725055,2064.0,2063.6,1.282]
[1771008847722,0.49725055,2064.0,2063.4,1.21158086]
[1771008847918,0.49725055,2064.0,2063.3,6.12859825]
[1771008847919,0.49725055,2064.0,2063.3,2.49359442]
[1771008848715,0.49725055,2064.0,2063.3,1.282]
[1771008849104,0.49725055,2063.8,2063.2,2.08469106]
[1771008849306,0.49725055,2063.8,2063.2,0.873]
[1771008849531,0.49725055,2063.8,2063.2,2.08470571]
[1771008849716,0.49725055,2063.8,2063.2,0.873]
[1771008851909,1.70866693,2063.7,2063.2,0.873]
[1771008852108,0.49725055,2063.7,2063.2,2.08470622]
[1771008852332,1.21140143,2063.8,2063.2,2.08470622]
[1771008852534,1.70865198,2063.8,2063.2,2.08470622]
[1771008852739,0.49725055,2063.7,2063.2,2.0847067]
[1771008853238,0.49725055,2063.7,2063.2,1.2117067]
[1771008853940,0.49725055,2063.7,2063.1,1.21172099]
[1771008854121,0.49725055,2063.7,2063.0,5.55820029]
[1771008854122,1.21147509,2063.6,2063.0,1.92278042]
[1771008854320,1.70871469,2063.7,2063.0,1.92278042]
[1771008856544,0.49725055,2063.7,2063.0,1.92278042]
[1771008857127,1.70853048,2064.0,2063.0,1.92278042]
[1771008857469,0.49725055,2063.9,2063.0,2.40876416]
[1771008857628,0.49725055,2063.9,2063.0,1.92278042]
[1771008858050,0.49725055,2063.9,2063.0,1.92281616]
[1771008858767,0.49725055,2063.7,2063.0,1.92281616]
[1771008859128,1.70858715,2063.9,2063.0,2.4087999]
[1771008861130,2.74943451,2064.1,2063.1,0.48598374]
[1771008861878,1.71043451,2064.1,2063.2,0.001]
[1771008862373,0.002,2063.9,2063.2,0.001]
[1771008862976,0.49925055,2063.9,2063.2,0.001]
[1771008863184,0.49725055,2063.7,2063.2,0.001]
[1771008863834,0.49725055,2063.7,2063.0,1.281]
[1771008864040,0.49725055,2063.7,2062.7,0.874]
[1771008864041,0.49725055,2063.5,2062.7,0.001]
[1771008865055,0.49725055,2063.3,2062.7,0.001]
[1771008865250,0.1024,2063.5,2062.7,0.001]
[1771008865447,0.49725055,2063.5,2062.7,0.001]
[1771008867149,1.70884306,2063.4,2062.7,0.001]
[1771008867346,1.21159251,2063.4,2062.7,0.001]
[1771008868397,1.70884306,2063.4,2062.7,0.001]
[1771008868598,1.2115687,2063.5,2062.7,0.001]
[1771008869255,5.34321351,2063.6,2062.7,0.001]
[1771008872704,0.49423628,2063.5,2062.7,0.001]
[1771008874040,4.84580105,2063.8,2062.9,0.49011645]
[1771008874041,1.21138949,2063.8,2062.9,0.49011645]
[1771008874195,1.70562577,2063.8,2062.8,1.274]
[1771008874531,1.70562577,2063.8,2062.8,1.76411645]
[1771008875328,0.49423628,2063.7,2062.8,1.274]
[1771008875999,0.49423628,2063.5,2062.9,0.001]
[1771008877514,1.21147509,2063.6,2062.9,0.001]
[1771008877714,1.70571137,2063.6,2062.9,0.001]
[1771008878523,0.49423628,2063.5,2062.9,0.001]
[1771008880229,1.70582879,2063.4,2062.9,0.001]
[1771008880705,1.21159251,2063.4,2062.9,0.001]
[1771008880906,0.49423628,2063.3,2062.9,0.001]
[1771008881210,1.21159251,2063.4,2062.9,0.001]
[1771008882098,4.84637006,2063.5,2062.9,0.001]
[1771008882310,1.2115338,2063.5,2062.9,0.001]
[1771008882905,1.21150828,2063.6,2062.9,0.001]
[1771008884231,1.70574456,2063.6,2062.9,0.001]
[1771008884442,0.49423628,2063.5,2062.9,0.001]
[1771008886305,1.21159251,2063.4,2062.9,0.001]
[1771008888439,1.21147509,2063.6,2062.9,0.001]
[1771008889039,1.70571137,2063.6,2062.9,0.001]
[1771008889239,1.70571137,2063.6,2063.0,0.001]
[1771008889441,0.002,2063.5,2063.0,0.001]
[1771008889641,0.49623628,2063.5,2063.0,0.001]
[1771008890535,1.21159251,2063.4,2063.0,0.001]
[1771008890717,1.70582879,2063.4,2063.0,0.001]
[1771008891638,1.21357788,2063.5,2063.0,0.001]
[1771008892641,0.002,2063.5,2063.0,0.001]
[1771008893141,0.002,2063.5,2063.0,0.49111645]
[1771008893740,1.16546279,2063.7,2063.0,0.49111645]
[1771008894155,1.16546279,2063.7,2063.0,0.001]
[1771008896373,0.49423628,2063.6,2063.0,0.001]
[1771008897167,1.70577008,2063.5,2063.0,0.001]
[1771008899271,0.456217,2063.4,2063.0,0.001]
[1771008899686,1.2115338,2063.5,2063.0,0.001]
[1771008900693,1.67132038,2063.5,2063.0,0.001]
[1771008901092,1.21165123,2063.3,2063.0,0.001]
[1771008901380,1.67143781,2063.3,2063.0,0.001]
[1771008901579,1.67143781,2063.3,2062.9,1.266]
[1771008901760,1.67143781,2063.3,2062.9,0.001]
[1771008901963,0.45978658,2063.2,2062.9,0.001]
[1771008902167,1.21165123,2063.3,2062.9,0.001]
[1771008902375,0.45978658,2063.2,2062.9,0.001]
[1771008902991,0.45978658,2063.2,2063.1,0.001]
[1771008903289,1.21176869,2063.1,2062.9,0.001]
[1771008903989,1.21375227,2063.2,2062.9,0.001]
[1771008905192,0.002,2063.2,2062.9,0.001]
[1771008907374,0.46178658,2063.2,2062.9,0.001]
[1771008907795,0.002,2063.2,2062.9,0.001]
[1771008915803,1.21370996,2063.2,2062.9,0.001]
[1771008916506,1.21370996,2063.2,2063.1,0.001]
[1771008916700,0.002,2063.0,2062.9,0.001]
[1771008924627,0.00065672,2063.0,2062.9,0.001]
[1771008928523,0.46378459,2062.9,2062.3,0.001]
[1771008928918,1.06565672,2063.0,2062.1,0.001]
[1771008928919,1.51143893,2062.8,2062.1,0.001]
[1771008929219,1.04765434,2062.7,2062.1,2.96723242]
[1771008929396,1.04765434,2062.6,2062.1,2.96723242]
[1771008929589,1.04765434,2062.5,2062.1,2.96723242]
[1771008929923,0.002,2062.9,2062.1,2.96723242]
[1771008929924,1.21201737,2062.7,2062.1,2.96723242]
[1771008930922,0.002,2062.9,2062.2,0.4773676]
[1771008931221,1.21388821,2062.9,2062.2,0.4773676]
[1771008932009,1.21388821,2062.9,2062.3,1.21223876]
[1771008933226,1.21388821,2062.9,2062.2,1.68962075]
[1771008934239,0.002,2062.9,2062.2,1.68962075]
[1771008936506,0.46606708,2062.9,2062.1,1.262]
[1771008936743,0.002,2062.9,2062.2,0.4773676]
[1771008937948,1.045852,2062.8,2062.2,0.4773676]
[1771008938249,1.045852,2062.7,2062.3,1.69972029]
[1771008938441,1.21390306,2062.9,2062.3,1.69972029]
[1771008938735,1.04579559,2062.8,2062.3,1.69972029]
[1771008939142,0.00065672,2063.0,2062.5,0.48748153]
[1771008939322,0.00065672,2063.0,2062.6,1.263]
[1771008941653,0.00065672,2063.0,2062.1,0.001]
[1771008941654,0.47562077,2062.6,2062.1,0.001]
[1771008942151,1.68774198,2062.5,2062.1,0.001]
[1771008942826,0.47562077,2062.4,2062.1,0.001]
[1771008944050,1.21223876,2062.3,2062.1,0.001]
[1771008944267,0.47562077,2062.2,2061.6,0.001]
[1771008946273,0.47562077,2062.0,2061.6,0.001]
[1771008947174,0.47562077,2062.0,2061.4,0.001]